bitfinex/quotes_BTCUSD_20241216
["timestamp","ask_amount","ask_price","bid_price","bid_amount"]
[1734330335268,0.53508382,105050.0,105040.0,0.59452983]
[1734330336702,0.20628499,105050.0,105040.0,0.59452983]
[1734330336902,0.2678363,105050.0,105040.0,0.59452983]
[1734330337945,0.36201156,105050.0,105040.0,0.59452983]
[1734330338465,0.42356287,105050.0,105040.0,0.59452983]
[1734330338662,0.51785357,105050.0,105040.0,0.59452983]
[1734330338883,0.56785357,105050.0,105040.0,0.59452983]
[1734330340084,0.53870715,105050.0,105040.0,0.59452983]
[1734330341307,0.44453189,105050.0,105040.0,0.59452983]
[1734330343532,0.44470469,105050.0,105040.0,0.59452983]
[1734330347519,0.58716089,105050.0,105040.0,0.59452983]
[1734330347725,0.49320469,105050.0,105040.0,0.59452983]
[1734330348100,0.57834815,105050.0,105040.0,0.59452983]
[1734330348307,0.58737995,105050.0,105040.0,0.59452983]
[1734330349666,0.49320469,105050.0,105040.0,0.59452983]
[1734330353714,0.49320469,105050.0,105040.0,0.31068746]
[1734330359977,0.52257779,105050.0,105040.0,0.31068746]
[1734330362642,0.60772419,105050.0,105040.0,0.31068746]
[1734330364049,0.52257779,105050.0,105040.0,0.31068746]
[1734330364223,0.70197292,105050.0,105040.0,0.31068746]
[1734330364588,0.82980272,105050.0,105040.0,0.31068746]
[1734330365796,1.00024246,105050.0,105040.0,0.31068746]
[1734330367584,1.12807227,105050.0,105040.0,0.31068746]
[1734330368353,0.61675305,105050.0,105040.0,0.31068746]
[1734330368554,1.12910325,105050.0,105040.0,0.31068746]
[1734330369164,1.0010157,105050.0,105040.0,0.31068746]
[1734330370583,0.90684044,105050.0,105040.0,0.31068746]
[1734330371190,0.90684044,105050.0,105040.0,0.2614926]
[1734330373051,0.90731458,105050.0,105040.0,0.2614926]
[1734330373711,0.6696511,105050.0,105040.0,0.4518956]
[1734330373953,0.73131575,105050.0,105040.0,0.2614926]
[1734330374155,0.85960702,105050.0,105040.0,0.2614926]
[1734330374361,0.64586436,105050.0,105040.0,0.2614926]
[1734330374563,0.85960702,105050.0,105040.0,0.2614926]
[1734330375188,0.64586436,105050.0,105040.0,0.07377825]
[1734330377299,0.64601527,105050.0,105040.0,0.07377825]
[1734330379058,0.58435062,105050.0,105040.0,0.07377825]
[1734330379261,0.21409492,105050.0,105040.0,0.34388125]
[1734330379493,0.21409492,105050.0,105040.0,0.39298125]
[1734330379494,0.0001728,105050.0,105040.0,0.39298125]
[1734330379860,0.0001728,105050.0,105040.0,0.54298125]
[1734330381625,0.0001728,105050.0,105040.0,0.7219366]
[1734330381832,0.0001728,105050.0,105040.0,0.85726204]
[1734330382034,0.0001728,105050.0,105040.0,0.9852502]
[1734330382237,0.0001728,105050.0,105040.0,0.85726204]
[1734330382693,0.0001728,105050.0,105040.0,0.96892669]
[1734330382866,0.16665928,105090.0,105080.0,0.190331]
[1734330383071,0.08109521,105090.0,105080.0,0.190331]
[1734330384074,0.01943056,105090.0,105080.0,0.19049948]
[1734330384731,0.01943056,105090.0,105080.0,0.00016848]
[1734330384938,0.01943056,105090.0,105080.0,0.19049948]
[1734330387938,0.29517987,105100.0,105080.0,0.38083048]
[1734330387939,0.28415594,105100.0,105080.0,0.38083048]
[1734330388131,0.37844664,105100.0,105080.0,0.38083048]
[1734330388332,0.37844664,105100.0,105080.0,0.57116148]
[1734330388991,0.0001726,105090.0,105080.0,0.38083048]
[1734330393661,0.28434654,105090.0,105080.0,0.00016848]
[1734330394048,0.3748815,105090.0,105080.0,0.00016848]
[1734330394400,0.28434654,105090.0,105080.0,0.00016848]
[1734330400398,0.28434654,105090.0,105080.0,0.00025478]
[1734330401102,0.28434654,105090.0,105080.0,0.19058578]
[1734330401673,0.09403354,105090.0,105080.0,0.19058578]
[1734330402032,0.0001726,105090.0,105080.0,0.19058578]
[1734330404024,0.06177081,105090.0,105080.0,0.19058578]
[1734330405687,0.0001726,105090.0,105080.0,0.19058578]
[1734330411999,0.0001726,105090.0,105080.0,0.15368963]
[1734330413221,0.0001726,105090.0,105080.0,0.15358267]
[1734330417888,0.0001726,105090.0,105080.0,0.14435863]
[1734330423119,0.0001726,105090.0,105080.0,0.14444493]
[1734330424007,0.0001726,105090.0,105080.0,8.63e-05]
[1734330424211,0.0001726,105090.0,105080.0,0.1904173]
[1734330425539,0.08523482,105090.0,105080.0,0.1904173]
[1734330425731,0.08560732,105090.0,105080.0,0.1904173]
[1734330427349,0.2137594,105090.0,105080.0,0.1904173]
[1734330429028,0.13077443,105090.0,105080.0,0.1904173]
[1734330430458,0.12831017,105090.0,105080.0,0.3807483]
[1734330434902,0.12848277,105090.0,105080.0,0.3807483]
[1734330435100,0.12848262,105090.0,105080.0,0.3807483]
[1734330437269,0.12848262,105090.0,105080.0,0.32887877]
[1734330437473,0.0001726,105090.0,105080.0,0.190331]
[1734330437854,0.0001726,105090.0,105080.0,0.380651]
[1734330439022,0.21402312,105090.0,105080.0,0.380651]
[1734330439853,0.21402456,105090.0,105080.0,0.37751494]
[1734330443753,0.08571338,105090.0,105080.0,0.52751494]
[1734330443912,0.08571338,105090.0,105080.0,0.60351494]
[1734330443913,0.0001726,105090.0,105080.0,0.60351494]
[1734330444885,0.05318096,105100.0,105080.0,0.79383394]
[1734330445092,0.05318096,105100.0,105090.0,0.190313]
[1734330450296,0.05318096,105100.0,105090.0,0.16437824]
[1734330450499,0.76717513,105110.0,105090.0,0.35469124]
[1734330450707,0.76717513,105110.0,105090.0,0.54500424]
[1734330451286,0.59623038,105110.0,105090.0,0.54500424]
[1734330451684,0.59623038,105110.0,105090.0,0.35469124]
[1734330452286,0.59623038,105110.0,105090.0,0.54499324]
[1734330452722,0.59623038,105110.0,105090.0,0.54472874]
[1734330452917,0.59623038,105110.0,105090.0,0.35441574]
[1734330453362,0.59623038,105110.0,105090.0,0.36496108]
[1734330454640,0.78650738,105110.0,105090.0,0.36496108]
[1734330455040,0.78650738,105110.0,105090.0,0.35441574]
[1734330456213,0.31208792,105110.0,105100.0,0.190294]
[1734330456416,0.31208792,105110.0,105090.0,0.16411374]
[1734330456729,0.37416436,105110.0,105090.0,0.16411374]
[1734330456930,0.37416436,105110.0,105090.0,0.15114636]
[1734330457130,0.56445036,105110.0,105090.0,0.34145836]
[1734330457328,0.37416436,105110.0,105090.0,0.34145836]
[1734330457511,0.28869199,105110.0,105090.0,0.34145836]
[1734330457918,0.28886459,105110.0,105090.0,0.34145836]
[1734330458394,0.28886459,105110.0,105090.0,0.34144936]
[1734330459409,0.09857959,105110.0,105090.0,0.34144936]
[1734330459669,0.01917959,105110.0,105090.0,0.61215136]
[1734330460598,2.0674612,105110.0,105090.0,0.61215136]
[1734330461584,2.40480978,105110.0,105090.0,0.42184836]
[1734330461821,2.34321157,105110.0,105090.0,0.42184836]
[1734330462054,2.15293357,105110.0,105100.0,0.15]
[1734330462300,2.0674612,105110.0,105100.0,0.15]
[1734330466020,2.0674612,105110.0,105090.0,0.61214936]
[1734330466776,2.0674612,105110.0,105090.0,0.45731522]
[1734330467386,2.0674612,105110.0,105090.0,0.64761622]
[1734330469175,2.1493612,105110.0,105090.0,0.35345554]
[1734330469597,2.1493612,105110.0,105090.0,0.54375654]
[1734330469803,2.1493612,105110.0,105090.0,0.35345554]
[1734330471418,2.3396382,105110.0,105090.0,0.35345554]
[1734330474901,2.5299232,105110.0,105090.0,0.35345554]
[1734330478349,2.5299232,105110.0,105090.0,0.16315454]
[1734330478570,2.7202122,105110.0,105090.0,0.16315454]
[1734330478785,2.78181041,105110.0,105090.0,8.63e-05]
[1734330479038,0.0766,105100.0,105090.0,0.1903993]
[1734330479240,0.0766,105100.0,105090.0,0.3403993]
[1734330480222,0.41209757,105100.0,105090.0,8.63e-05]
[1734330480409,0.39455384,105100.0,105090.0,8.63e-05]
[1734330480583,0.3091922,105100.0,105090.0,8.63e-05]
[1734330480783,0.39459368,105100.0,105090.0,8.63e-05]
[1734330481204,0.33299547,105100.0,105090.0,8.63e-05]
[1734330481394,0.24759399,105100.0,105090.0,8.63e-05]
[1734330481838,0.33299547,105100.0,105090.0,8.63e-05]
[1734330482553,0.24759399,105100.0,105090.0,8.63e-05]
[1734330485499,0.0467,105100.0,105090.0,8.63e-05]
[1734330486168,0.36019042,105100.0,105090.0,8.63e-05]
[1734330486378,0.38399369,105100.0,105090.0,8.63e-05]
[1734330486831,0.51209591,105100.0,105090.0,8.63e-05]
[1734330487272,0.38399369,105100.0,105090.0,8.63e-05]
[1734330488403,0.3840525,105100.0,105090.0,8.63e-05]
[1734330488625,0.4603525,105100.0,105090.0,8.63e-05]
[1734330488828,0.65014114,105100.0,105090.0,8.63e-05]
[1734330490358,0.7443164,105100.0,105090.0,8.63e-05]
[1734330490561,0.58414113,105100.0,105090.0,8.63e-05]
[1734330490713,0.75506171,105100.0,105090.0,8.63e-05]
[1734330490917,0.97754284,105100.0,105090.0,8.63e-05]
[1734330491125,0.79003004,105100.0,105090.0,8.63e-05]
[1734330491534,0.72843183,105100.0,105090.0,8.63e-05]
[1734330491739,0.62055458,105100.0,105090.0,8.63e-05]
[1734330491943,0.92693545,105100.0,105090.0,8.63e-05]
[1734330492345,0.92710805,105100.0,105090.0,8.63e-05]
[1734330492749,0.9374557,105100.0,105090.0,8.63e-05]
[1734330493518,0.9839557,105100.0,105090.0,8.63e-05]
[1734330493741,1.1569557,105100.0,105090.0,8.63e-05]
[1734330493952,1.1569557,105100.0,105090.0,3e-07]
[1734330495336,1.154738,105100.0,105090.0,3e-07]
[1734330497187,1.06056274,105100.0,105090.0,3e-07]
[1734330498732,0.80430213,105100.0,105090.0,3e-07]
[1734330499650,0.85430213,105100.0,105090.0,3e-07]
[1734330499833,0.9326583,105100.0,105090.0,3e-07]
[1734330500022,1.10301359,105100.0,105090.0,3e-07]
[1734330500415,1.1646118,105100.0,105090.0,3e-07]
[1734330500589,0.99425651,105100.0,105090.0,3e-07]
[1734330500764,1.05572355,105100.0,105090.0,3e-07]
[1734330500942,1.10572355,105100.0,105090.0,3e-07]
[1734330501143,0.99425651,105100.0,105090.0,3e-07]
[1734330501355,1.16452746,105100.0,105090.0,3e-07]
[1734330501537,1.21452746,105100.0,105090.0,3e-07]
[1734330501745,1.16452746,105100.0,105090.0,3e-07]
[1734330502348,1.29223862,105100.0,105090.0,3e-07]
[1734330502590,1.25870272,105100.0,105090.0,3e-07]
[1734330503510,1.38639926,105100.0,105090.0,3e-07]
[1734330503655,1.25870272,105100.0,105090.0,3e-07]
[1734330504332,1.38639037,105100.0,105090.0,3e-07]
[1734330504643,1.25870272,105100.0,105090.0,3e-07]
[1734330505766,1.25851573,105100.0,105090.0,3e-07]
[1734330507928,1.08827647,105100.0,105090.0,3e-07]
[1734330509062,1.15383629,105100.0,105090.0,3e-07]
[1734330509356,0.319413,105090.0,105080.0,4.66e-05]
[1734330509666,1.22682075,105090.0,105080.0,4.66e-05]
[1734330510120,1.14171392,105090.0,105080.0,4.66e-05]
[1734330510265,1.40331213,105090.0,105080.0,6e-07]
[1734330510472,1.12843965,105090.0,105080.0,6e-07]
[1734330510888,0.91567359,105090.0,105080.0,6e-07]
[1734330511124,1.17103249,105090.0,105080.0,6e-07]
[1734330513642,1.47103249,105090.0,105080.0,6e-07]
[1734330513927,1.42103249,105090.0,105080.0,6e-07]
[1734330514537,1.42088507,105090.0,105080.0,6e-07]
[1734330514739,1.45278651,105090.0,105080.0,6e-07]
[1734330514891,0.125,105060.0,105050.0,0.1]
[1734330515154,1.03706547,105060.0,105050.0,0.10010676]
[1734330515354,0.98706547,105060.0,105050.0,0.10010676]
[1734330516285,1.19975035,105060.0,105050.0,0.10010676]
[1734330516496,0.98705103,105060.0,105050.0,0.10010676]
[1734330516702,1.11468506,105060.0,105050.0,0.10010676]
[1734330517318,1.19971018,105060.0,105050.0,0.10010676]
[1734330518358,0.98701086,105060.0,105050.0,0.10010676]
[1734330518528,1.19971018,105060.0,105050.0,0.10010676]
[1734330518889,1.13359621,105060.0,105050.0,0.10010676]
[1734330520130,1.0059027,105060.0,105050.0,0.10010676]
[1734330520542,1.01655513,105060.0,105050.0,0.10010676]
[1734330520700,0.65184668,105060.0,105050.0,0.10010676]
[1734330521059,0.7750431,105060.0,105050.0,0.10010676]
[1734330521850,0.83664131,105060.0,105050.0,0.10010676]
[1734330523238,0.7750431,105060.0,105050.0,0.10010676]
[1734330523442,0.83664131,105060.0,105050.0,0.10010676]
[1734330523636,0.7750431,105060.0,105050.0,0.10010676]
[1734330524615,0.94520256,105060.0,105050.0,0.10010676]
[1734330524949,0.7750431,105060.0,105050.0,0.10010676]
[1734330525151,0.83664131,105060.0,105050.0,0.10010676]
[1734330525616,0.7750431,105060.0,105050.0,0.10010676]
[1734330526318,0.7750431,105060.0,105050.0,0.00010676]
[1734330527720,0.64742351,105060.0,105050.0,0.00010676]
[1734330527924,0.83664131,105060.0,105050.0,0.00010676]
[1734330528128,0.93081657,105060.0,105050.0,0.00019306]
[1734330528328,1.10097603,105060.0,105050.0,0.00019306]
[1734330531425,1.31367535,105060.0,105050.0,0.00019306]
[1734330531623,1.01604803,105060.0,105050.0,0.00019306]
[1734330531824,3.3621865,105060.0,105050.0,0.00019306]
[1734330532225,3.1494316,105060.0,105050.0,0.00019306]
[1734330532369,3.3621865,105060.0,105050.0,0.00019306]
[1734330532567,3.27708454,105060.0,105050.0,0.00019306]
[1734330533834,3.18290928,105060.0,105050.0,0.00019306]
[1734330535223,2.99365813,105060.0,105050.0,0.00019306]
[1734330536033,3.05525634,105060.0,105050.0,0.00019306]
[1734330536860,2.87046171,105060.0,105050.0,0.00019306]
[1734330537080,2.99365813,105060.0,105050.0,0.00019306]
[1734330537278,3.04650777,105060.0,105050.0,0.00019306]
[1734330538329,2.91865813,105060.0,105050.0,0.00019306]
[1734330538482,3.04654778,105060.0,105050.0,0.00019306]
[1734330539250,2.91865813,105060.0,105050.0,0.00019306]
[1734330539966,3.04655708,105060.0,105050.0,0.00019306]
[1734330540156,3.14073234,105060.0,105050.0,0.00019306]
[1734330540981,3.14147935,105060.0,105050.0,0.00019306]
[1734330545392,3.28277756,105060.0,105050.0,0.00019306]
[1734330545590,2.98434144,105060.0,105050.0,0.00019306]
[1734330547708,2.93434144,105060.0,105050.0,0.00019306]
[1734330547934,2.97697517,105060.0,105050.0,0.00019306]
[1734330548702,2.72117278,105060.0,105050.0,0.00019306]
[1734330548907,2.9771754,105060.0,105050.0,0.00019306]
[1734330552236,0.05,105050.0,105010.0,0.19110911]
[1734330552442,0.44244121,105030.0,105010.0,0.19110911]
[1734330554093,0.50407542,105020.0,105000.0,0.4406366]
[1734330554295,0.06159821,105010.0,105000.0,0.4406366]
[1734330554545,0.44247721,105020.0,105000.0,0.4406366]
[1734330555370,0.71834504,105020.0,105000.0,0.44069268]
[1734330555548,0.25203821,105020.0,105010.0,0.0481]
[1734330555811,0.40574888,105020.0,105010.0,0.0481]
[1734330556015,0.53460467,105020.0,105010.0,0.0481]
[1734330556163,0.44249221,105020.0,105010.0,0.0481]
[1734330556553,0.59838112,105020.0,105010.0,0.0481]
[1734330556757,0.68379595,105020.0,105010.0,0.0481]
[1734330557415,0.8119182,105020.0,105010.0,0.0481]
[1734330557566,0.68379595,105020.0,105010.0,0.0481]
[1734330557916,0.59838112,105020.0,105010.0,0.0481]
[1734330558118,0.73527816,105020.0,105010.0,0.0481]
[1734330558320,0.86352474,105020.0,105010.0,0.0481]
[1734330559126,0.190458,105010.0,105000.0,0.37642868]
[1734330559313,0.25205621,105010.0,105000.0,0.22642868]
[1734330560543,0.06159821,105010.0,105000.0,0.22642868]
[1734330560792,0.190458,105010.0,105000.0,0.22642868]
[1734330561016,0.25205621,105010.0,105000.0,0.22642868]
[1734330564804,0.06159821,105010.0,105000.0,0.22642868]
[1734330565183,0.25205621,105010.0,105000.0,0.22642868]
[1734330565397,0.24765441,105010.0,105000.0,0.22642868]
[1734330566032,0.24765441,105010.0,105000.0,0.14792868]
[1734330568188,0.24765441,105010.0,105000.0,0.10022868]
[1734330570669,0.06159821,105010.0,105000.0,0.10022868]
[1734330571141,2.70704867,105020.0,105000.0,0.10022868]
[1734330571341,2.79430116,105020.0,105000.0,0.36920468]
[1734330571519,0.06159821,105010.0,105000.0,0.17872868]
[1734330571759,0.06159821,105010.0,105000.0,0.10022868]
[1734330572918,0.25205621,105010.0,105000.0,0.10022868]
[1734330574233,0.25222901,105010.0,105000.0,0.10022868]
[1734330575449,0.186229,105010.0,105000.0,0.10022868]
[1734330575660,0.06177101,105010.0,105000.0,0.10022868]
[1734330576511,0.25222901,105010.0,105000.0,0.10022868]
[1734330578312,0.25222901,105010.0,105000.0,0.08628468]
[1734330581365,0.24782721,105010.0,105000.0,0.08628468]
[1734330585351,0.24782721,105010.0,105000.0,0.08637108]
[1734330585500,0.06159821,105010.0,105000.0,0.08637108]
[1734330585703,0.25222901,105010.0,105000.0,0.08637108]
[1734330585897,0.0001728,105010.0,105000.0,0.27684708]
[1734330587013,0.0001728,105010.0,104990.0,0.5034493]
[1734330587232,0.0001728,105010.0,104990.0,0.50361782]
[1734330587837,0.0001728,105010.0,105000.0,0.190476]
[1734330588750,0.06177101,105010.0,105000.0,0.190476]
[1734330590491,2.89145321,105020.0,105000.0,0.190476]
[1734330591719,2.89145321,105020.0,105000.0,0.380951]
[1734330591904,2.89161381,105020.0,105000.0,0.380951]
[1734330592642,2.89161381,105020.0,105000.0,0.39109306]
[1734330593600,3.06257193,105020.0,105000.0,0.380951]
[1734330594864,2.89161381,105020.0,105000.0,0.380951]
[1734330597121,3.06257193,105020.0,105000.0,0.380951]
[1734330597366,3.06257193,105020.0,105000.0,0.3810374]
[1734330597367,0.08547906,105010.0,105000.0,0.3810374]
[1734330599026,0.21369765,105010.0,105000.0,0.3810374]
[1734330600520,0.01947905,105010.0,105000.0,0.3810374]
[1734330603831,0.14769764,105010.0,105000.0,0.3810374]
[1734330604204,0.01947905,105010.0,105000.0,0.3810374]
[1734330605427,3.04997887,105020.0,105000.0,0.3810374]
[1734330605625,2.91028883,105020.0,105000.0,0.3810374]
[1734330606404,2.91112291,105020.0,105000.0,0.3810374]
[1734330607324,3.10157191,105020.0,105000.0,0.3810374]
[1734330610234,2.83091186,105020.0,105010.0,0.190458]
[1734330610441,2.42641767,105020.0,105010.0,0.190458]
[1734330610640,2.25518152,105020.0,105010.0,0.190458]
[1734330610861,2.12675441,105020.0,105010.0,0.190458]
[1734330612159,2.04845441,105020.0,105010.0,0.190458]
[1734330612449,2.04845441,105020.0,105010.0,0.340458]
[1734330614055,2.04845441,105020.0,105010.0,0.08731381]
[1734330614268,2.04845441,105020.0,105010.0,0.266658]
[1734330614477,2.04845441,105020.0,105010.0,0.3609487]
[1734330614701,2.04845441,105020.0,105010.0,0.4065487]
[1734330615632,1.9824544,105020.0,105010.0,0.4065487]
[1734330616379,1.9824544,105020.0,105010.0,0.5565487]
[1734330620791,1.91645439,105020.0,105010.0,0.5565487]
[1734330621808,1.91645439,105020.0,105010.0,0.56652259]
[1734330625506,1.95045438,105020.0,105010.0,0.56652259]
[1734330628340,1.95045438,105020.0,105010.0,0.49032259]
[1734330629454,1.95045438,105020.0,105010.0,0.56592259]
[1734330630730,1.88445437,105020.0,105010.0,0.56592259]
[1734330630959,1.88445437,105020.0,105010.0,0.56600899]
[1734330633481,1.88445437,105020.0,105010.0,0.6276072]
[1734330635497,1.81845436,105020.0,105010.0,0.6276072]
[1734330635697,1.81845436,105020.0,105010.0,0.56600899]
[1734330637607,1.81845436,105020.0,105010.0,0.62643518]
[1734330640081,1.81845436,105020.0,105010.0,0.56483697]
[1734330641252,1.75245435,105020.0,105010.0,0.56483697]
[1734330642600,1.75245435,105020.0,105010.0,0.36585375]
[1734330642944,1.75245435,105020.0,105010.0,0.55631175]
[1734330645180,1.75245435,105020.0,105010.0,0.48071175]
[1734330645466,1.68645434,105020.0,105010.0,0.48071175]
[1734330646498,1.68645434,105020.0,105010.0,0.54230996]
[1734330646700,1.68645434,105020.0,105010.0,0.57230996]
[1734330648195,1.68645434,105020.0,105010.0,0.51071175]
[1734330648599,1.68645434,105020.0,105010.0,0.46511175]
[1734330648821,1.68645434,105020.0,105010.0,0.0300864]
[1734330648822,1.89255076,105020.0,105010.0,0.0300864]
[1734330649052,2.12798976,105020.0,105010.0,8.64e-05]
[1734330650043,2.06639155,105020.0,105010.0,8.64e-05]
[1734330650249,2.00479334,105020.0,105010.0,8.64e-05]
[1734330650466,2.06198975,105020.0,105010.0,8.64e-05]
[1734330652416,1.96198975,105020.0,105010.0,8.64e-05]
[1734330652818,1.98081861,105020.0,105010.0,8.64e-05]
[1734330653000,2.00469328,105020.0,105010.0,8.64e-05]
[1734330653198,1.9192204,105020.0,105010.0,8.64e-05]
[1734330653604,1.98081861,105020.0,105010.0,8.64e-05]
[1734330654027,2.06630985,105020.0,105010.0,8.64e-05]
[1734330654354,1.98081861,105020.0,105010.0,8.64e-05]
[1734330654558,1.9192204,105020.0,105010.0,8.64e-05]
[1734330654936,1.90039154,105020.0,105010.0,8.64e-05]
[1734330655553,1.83439153,105020.0,105010.0,8.64e-05]
[1734330656206,2.04824913,105020.0,105010.0,8.64e-05]
[1734330656754,2.10984734,105020.0,105010.0,8.64e-05]
[1734330657353,1.90153278,105020.0,105010.0,8.64e-05]
[1734330657579,1.83993457,105020.0,105010.0,8.64e-05]
[1734330660394,1.75439153,105020.0,105010.0,8.64e-05]
[1734330660611,1.50235432,105020.0,105010.0,8.64e-05]
[1734330660811,1.56395253,105020.0,105010.0,8.64e-05]
[1734330661032,1.75439153,105020.0,105010.0,8.64e-05]
[1734330662237,1.75439153,105020.0,105000.0,0.190466]
[1734330662650,1.75439153,105020.0,105000.0,0.380931]
[1734330662846,1.69279332,105020.0,105000.0,0.571397]
[1734330663192,1.50235432,105020.0,105010.0,0.190458]
[1734330665552,1.68839152,105020.0,105000.0,0.1905514]
[1734330665758,0.13759821,105010.0,105000.0,8.64e-05]
[1734330665970,0.32805621,105010.0,105000.0,8.64e-05]
[1734330667803,0.266458,105010.0,105000.0,8.64e-05]
[1734330670448,0.20045799,105010.0,105000.0,8.64e-05]
[1734330670883,0.2620562,105010.0,105000.0,8.64e-05]
[1734330672574,1.52190511,105020.0,105010.0,0.271658]
[1734330672804,1.30845431,105020.0,105010.0,0.57934608]
[1734330673051,1.30845431,105020.0,105010.0,0.58737593]
[1734330673253,1.30845431,105020.0,105010.0,0.63737593]
[1734330673463,1.30845431,105020.0,105010.0,0.72197414]
[1734330673688,1.30845431,105020.0,105010.0,0.77197414]
[1734330673912,1.30845431,105020.0,105010.0,0.79561309]
[1734330674130,1.30845431,105020.0,105010.0,0.82561309]
[1734330675820,1.2424543,105020.0,105010.0,0.82561309]
[1734330676093,1.2424543,105020.0,105010.0,0.85792025]
[1734330676293,1.2424543,105020.0,105010.0,0.85168957]
[1734330676702,1.2424543,105020.0,105010.0,0.76645241]
[1734330677485,1.2424543,105020.0,105010.0,0.85150196]
[1734330678059,1.2424543,105020.0,105010.0,0.84790362]
[1734330678263,1.2424543,105020.0,105010.0,0.76285407]
[1734330678463,1.2424543,105020.0,105010.0,0.76549907]
[1734330678888,1.239916,105020.0,105010.0,0.85054862]
[1734330679137,1.239916,105020.0,105010.0,0.77563543]
[1734330679449,1.239916,105020.0,105010.0,0.8873978]
[1734330679803,1.239916,105020.0,105010.0,1.01497213]
[1734330680236,1.239916,105020.0,105010.0,0.8873978]
[1734330680461,1.17391599,105020.0,105010.0,0.8873978]
[1734330681411,1.17391599,105020.0,105010.0,0.8373978]
[1734330681613,1.17391599,105020.0,105010.0,0.62908506]
[1734330681815,1.17391599,105020.0,105010.0,0.67908506]
[1734330682025,1.17391599,105020.0,105010.0,0.62908506]
[1734330682221,1.17391599,105020.0,105010.0,0.77299043]
[1734330685637,1.10791598,105020.0,105010.0,0.77299043]
[1734330686369,1.10791598,105020.0,105010.0,0.69179043]
[1734330688501,1.10791598,105020.0,105010.0,0.52497136]
[1734330693355,1.06982798,105020.0,105010.0,0.8380821]
[1734330693553,0.0001726,105080.0,105070.0,0.190349]
[1734330694984,5.612e-05,105080.0,105070.0,0.190349]
[1734330696043,5.612e-05,105080.0,105070.0,0.340349]
[1734330696193,5.612e-05,105080.0,105070.0,0.34185016]
[1734330697532,5.612e-05,105080.0,105070.0,0.340349]
[1734330699565,0.00022872,105080.0,105070.0,0.340349]
[1734330700408,0.00022872,105080.0,105070.0,0.33819607]
[1734330700616,0.00022872,105080.0,105070.0,0.60342433]
[1734330700861,0.00022872,105080.0,105070.0,0.50951896]
[1734330701298,0.05897391,105110.0,105070.0,0.50951896]
[1734330701515,0.0595354,105110.0,105090.0,0.190313]
[1734330701730,0.15344077,105110.0,105090.0,0.190313]
[1734330702154,0.0595354,105110.0,105090.0,0.190313]
[1734330703796,0.0595354,105110.0,105090.0,0.380626]
[1734330704401,0.1059354,105110.0,105090.0,0.380626]
[1734330705607,0.03993539,105110.0,105090.0,0.380626]
[1734330707638,0.03993539,105110.0,105090.0,0.190313]
[1734330708680,8.63e-05,105120.0,105110.0,0.340276]
[1734330708882,0.00014242,105120.0,105110.0,0.34069768]
[1734330709088,0.00014242,105120.0,105110.0,0.340276]
[1734330709939,0.0001728,105130.0,105110.0,0.530552]
[1734330710147,0.0001728,105130.0,105110.0,0.53060812]
[1734330710356,0.0001728,105130.0,105110.0,0.72088412]
[1734330711037,0.0001728,105130.0,105120.0,0.190258]
[1734330711159,0.0001728,105130.0,105110.0,0.72087212]
[1734330711600,0.0001728,105130.0,105110.0,0.53059612]
[1734330711963,0.0001728,105130.0,105110.0,0.72086112]
[1734330712373,0.09407817,105130.0,105110.0,0.34032012]
[1734330712577,0.0001728,105130.0,105110.0,0.34032012]
[1734330712782,0.1904148,105130.0,105110.0,0.34032012]
[1734330713928,0.0001728,105130.0,105110.0,0.34032012]
[1734330714670,0.0001728,105130.0,105110.0,0.53059612]
[1734330715458,0.0001728,105130.0,105110.0,0.34032012]
[1734330721668,0.0483728,105130.0,105110.0,0.34032012]
[1734330722891,0.2386128,105130.0,105110.0,0.34032012]
[1734330726323,0.0483728,105130.0,105110.0,0.53058712]
[1734330726916,0.0819,105120.0,105110.0,5.612e-05]
[1734330727121,0.36606337,105120.0,105110.0,5.612e-05]
[1734330727345,0.272158,105120.0,105110.0,5.612e-05]
[1734330730756,0.20615799,105120.0,105110.0,5.612e-05]
[1734330731656,0.30006336,105120.0,105110.0,5.612e-05]
[1734330732599,0.20615799,105120.0,105110.0,5.612e-05]
[1734330733602,0.20624429,105120.0,105110.0,5.612e-05]
[1734330735393,0.2702208,105120.0,105110.0,5.612e-05]
[1734330735597,0.06406281,105120.0,105110.0,5.612e-05]
[1734330735819,8.63e-05,105120.0,105110.0,5.612e-05]
[1734330736043,0.1903443,105120.0,105110.0,5.612e-05]
[1734330737035,0.37854037,105120.0,105110.0,5.612e-05]
[1734330738636,0.45434037,105120.0,105110.0,5.612e-05]
[1734330739257,0.53930124,105120.0,105110.0,5.612e-05]
[1734330740285,0.66674255,105120.0,105110.0,5.612e-05]
[1734330742103,0.83666429,105120.0,105110.0,5.612e-05]
[1734330743591,0.74275892,105120.0,105110.0,5.612e-05]
[1734330744830,0.57283718,105120.0,105110.0,0.00022852]
[1734330745257,0.74275892,105120.0,105110.0,0.00022852]
[1734330745604,0.87020023,105120.0,105110.0,0.00022852]
[1734330745806,0.95554081,105120.0,105110.0,0.00022852]
[1734330746206,0.87020023,105120.0,105110.0,0.00022852]
[1734330747326,0.95555654,105120.0,105110.0,0.00022852]
[1734330747779,0.87020023,105120.0,105110.0,0.00022852]
[1734330747919,0.95793662,105120.0,105110.0,0.00022852]
[1734330748121,0.74454318,105120.0,105110.0,0.00022852]
[1734330749956,0.95793662,105120.0,105110.0,0.00022852]
[1734330750152,0.96675451,105120.0,105110.0,0.00022852]
[1734330750563,0.55420435,105120.0,105110.0,0.00022852]
[1734330750814,0.64810972,105120.0,105110.0,0.00022852]
[1734330751010,0.74446235,105120.0,105110.0,0.00022852]
[1734330751361,0.5737476,105120.0,105110.0,0.00022852]
[1734330752201,0.57375771,105120.0,105110.0,0.00022852]
[1734330752595,0.49795771,105120.0,105110.0,0.00022852]
[1734330755464,0.4319577,105120.0,105110.0,0.00022852]
[1734330756734,0.43201494,105120.0,105110.0,0.00022852]
[1734330757098,0.43210114,105120.0,105110.0,0.00022852]
[1734330761214,0.60287414,105120.0,105110.0,0.00022852]
[1734330761414,0.36610113,105120.0,105110.0,0.00022852]
[1734330762020,0.42766368,105120.0,105110.0,0.00022852]
[1734330763378,0.65999923,105120.0,105110.0,0.00022852]
[1734330763530,0.73689923,105120.0,105110.0,0.00022852]
[1734330765549,0.58435055,105120.0,105110.0,0.00022852]
[1734330765763,0.46151084,105120.0,105110.0,0.00022852]
[1734330765975,0.58463594,105120.0,105110.0,0.00022852]
[1734330766347,0.49918602,105120.0,105110.0,0.00022852]
[1734330767335,0.68944402,105120.0,105110.0,0.00022852]
[1734330770638,0.5619751,105120.0,105110.0,0.00022852]
[1734330771474,0.51286005,105120.0,105110.0,0.00022852]
[1734330771650,0.51286005,105120.0,105110.0,0.27150452]
[1734330772480,0.3847883,105120.0,105110.0,0.27150452]
[1734330773220,0.51308957,105120.0,105110.0,0.27150452]
[1734330773846,0.29931829,105120.0,105110.0,0.27150452]
[1734330774490,0.57465212,105120.0,105110.0,0.27150452]
[1734330775640,0.50865211,105120.0,105110.0,0.27150452]
[1734330777620,0.50865211,105120.0,105110.0,0.08122852]
[1734330778734,0.44708956,105120.0,105110.0,0.27150452]
[1734330778934,0.23331828,105120.0,105110.0,0.27150452]
[1734330779160,0.31885031,105120.0,105110.0,0.27150452]
[1734330779388,0.2138333,105120.0,105110.0,0.27150452]